[Event "Turkish-ch Youth U13 2024"]
[Site "Belek Antalya"]
[Date "2024.01.26"]
[Round "8"]
[White "Coban, Ege"]
[Black "Saricam, Ege"]
[Result "1-0"]
[ECO "B80"]
[WhiteElo "1553"]
[BlackElo "1626"]
[Annotator "NA RC"]
[PlyCount "91"]
[EventDate "2024.01.21"]
[EventType "swiss"]
[EventCountry "TUR"]
[SourceTitle "playchess.com"]
[Source "ChessBase"]
[SourceQuality "1"]
[TimeControl "5400+30"]

1. e4 {[%emt 0:01:00]} c5 {[%emt 0:01:00]} 2. Nf3 {[%emt 0:00:30]} a6 {[%emt 0:00:00]} 3. Nc3 {[%emt 0:00:30]} Nc6 {[%emt 0:00:00]} 4. d4 {[%emt 0:00:00]} cxd4 {[%emt 0:00:30]} 5. Nxd4 {[%emt 0:00:00]} e6 {[%emt 0:01:30]} 6. a3 {[%emt 0:04:30]} d6 {[%emt 0:00:00]} 7. g3 {[%emt 0:02:30]} Nf6 {[%emt 0:00:00]} 8. Bg2 {[%emt 0:00:30]} Be7 {[%emt 0:00:30]} 9. Nb3 {[%emt 0:00:30]} Qc7 {[%emt 0:00:30]} 10. O-O {[%emt 0:00:30]} b5 {[%emt 0:00:30]} 11. f4 {[%emt 0:00:30]} Bb7 {[%emt 0:00:30]} 12. Be3 {[%emt 0:00:30]} O-O {[%emt 0:00:30]} 13. g4 {[%emt 0:00:00]} Nd7 {[%emt 0:09:30]} 14. g5 {[%emt 0:04:00]} Rfd8 {[%emt 0:02:30]} 15. Rf3 {[%emt 0:01:30]} Nf8 {[%emt 0:00:30]} 16. Rh3 {[%emt 0:00:30]} f6 {[%emt 0:09:30]} 17. Qh5 {[%emt 0:10:30]} fxg5 {[%emt 0:02:30]} 18. f5 {[%emt 0:07:30]} h6 {[%emt 0:17:30]} 19. fxe6 {[%emt 0:04:30]} Ne5 {[%emt 0:07:30]} 20. Nd4 {[%emt 0:01:30]} Re8 {[%emt 0:06:30]} 21. Rf1 {[%emt 0:02:30]} Bf6 {[%emt 0:11:30]} 22. Nd5 {[%emt 0:03:30]} Bxd5 {[%emt 0:03:30]} 23. exd5 {[%emt 0:00:30]} Nh7 {[%emt 0:00:30]} 24. Be4 {[%emt 0:01:30]} Rf8 {[%emt 0:09:25]} 25. Nc6 {[%emt 0:04:30]} g4 {[%emt 0:04:43]} 26. Nxe5 {[%emt 0:06:30]} Bxe5 {[%emt 0:00:40]} 27. Rf7 {[%emt 0:06:30]} Rxf7 {[%emt 0:01:19]} 28. exf7+ {[%emt 0:00:00]} Kf8 {[%emt 0:01:30]} 29. Qxg4 {[%emt 0:09:00]} Nf6 {[%emt 0:00:05]} 30. Qg2 {[%emt 0:02:30]} Qxf7 {[%emt 0:00:30]} 31. Bf5 {[%emt 0:01:30]} Bxb2 {[%emt 0:07:47]} 32. Be6 {[%emt 0:02:30]} Qe7 {[%emt 0:00:29]} 33. Bf4 {[%emt 0:01:30]} Ra7 {[%emt 0:00:30]} 34. Qg6 {[%emt 0:00:30]} Nxd5 {[%emt 0:00:30]} 35. Bxd5 {[%emt 0:00:30]} Bd4+ {[%emt 0:00:30]} 36. Kf1 {[%emt 0:00:30]} Qf6 {[%emt 0:00:30]} 37. Qxf6+ {[%emt 0:00:30]} Bxf6 {[%emt 0:00:30]} 38. Bxd6+ {[%emt 0:00:30]} Ke8 {[%emt 0:00:30]} 39. Be6 {[%emt 0:00:30]} Be7 {[%emt 0:00:30]} 40. Bxe7 {[%emt 0:00:30]} Kxe7 {[%emt 0:00:30]} 41. Re3 {[%emt 0:00:30]} Kf6 {[%emt 0:00:30]} 42. Ke2 {[%emt 0:00:30]} Rc7 {[%emt 0:00:30]} 43. Bb3 {[%emt 0:00:30]} Rc6 {[%emt 0:00:30]} 44. Kd3 {[%emt 0:00:30]} g5 {[%emt 0:00:30]} 45. Kd4 {[%emt 0:00:30]} a5 {[%emt 0:00:30]} 46. Rc3 {[%emt 0:00:30]} 1-0

[Event "Turkish-ch Youth U13 2024"]
[Site "Belek Antalya"]
[Date "2024.01.26"]
[Round "8"]
[White "Aslan, Ela"]
[Black "Donmez, Elif"]
[Result "1/2-1/2"]
[ECO "D05"]
[WhiteElo "1440"]
[BlackElo "1120"]
[Annotator "NA RC COMBH"]
[PlyCount "138"]
[EventDate "2024.01.21"]
[EventType "swiss"]
[EventCountry "TUR"]
[SourceTitle "playchess.com"]
[Source "ChessBase"]
[SourceQuality "1"]
[TimeControl "5400+30"]

1. Nf3 {[%emt 0:01:00]} Nf6 {[%emt 0:01:00]} 2. b3 {[%emt 0:00:30]} e6 {[%emt 0:00:00]} 3. Bb2 {[%emt 0:00:00]} d5 {[%emt 0:00:00]} 4. e3 {[%emt 0:00:00]} c5 {[%emt 0:01:30]} 5. d4 {[%emt 0:00:00]} a6 {[%emt 0:03:30]} 6. Bd3 {[%emt 0:08:00]} Bd6 {[%emt 0:05:30]} 7. O-O {[%emt 0:00:30]} O-O {[%emt 0:00:30]} 8. Nbd2 {[%emt 0:02:30]} Nc6 {[%emt 0:04:30]} 9. a3 {[%emt 0:01:30]} Re8 {[%emt 0:02:30]} 10. Ne5 {[%emt 0:01:30]} Qc7 {[%emt 0:19:30]} 11. f4 {[%emt 0:02:30]} b5 {[%emt 0:15:30]} 12. c3 {[%emt 0:03:30]} c4 {[%emt 0:02:30]} 13. Bc2 {[%emt 0:05:30]} cxb3 {[%emt 0:02:30]} 14. Bxb3 {[%emt 0:06:30]} Ne4 {[%emt 0:08:30]} 15. Nxe4 {[%emt 0:03:30]} dxe4 {[%emt 0:00:30]} 16. Qh5 {[%emt 0:02:30]} g6 {[%emt 0:07:30]} 17. Qe2 {[%emt 0:04:30]} Bf8 {[%emt 0:06:02]} 18. h4 {[%emt 0:02:30]} f5 {[%emt 0:06:47]} 19. h5 {[%emt 0:01:30]} Nxe5 {[%emt 0:01:09]} 20. fxe5 {[%emt 0:00:30]} Qg7 {[%emt 0:01:54]} 21. Rf4 {[%emt 0:10:30]} Be7 {[%emt 0:01:26]} 22. hxg6 {[%emt 0:05:30]} hxg6 {[%emt 0:01:06]} 23. g3 {[%emt 0:10:30]} Bg5 {[%emt 0:03:19]} 24. Rf2 {[%emt 0:00:30]} Kf7 {[%emt 0:00:45]} 25. Rh2 {[%emt 0:08:34]} Bd7 {[%emt 0:00:22]} 26. Rf1 {[%emt 0:01:43]} Rh8 {[%emt 0:00:22]} 27. Rff2 {[%emt 0:01:28]} Rxh2 {[%emt 0:00:30]} 28. Rxh2 {[%emt 0:00:30]} Rh8 {[%emt 0:00:00]} 29. Bc1 {[%emt 0:00:17]} Rh6 {[%emt 0:00:21]} 30. Qf2 {[%emt 0:03:25]} Rxh2 {[%emt 0:00:59]} 31. Qxh2 {[%emt 0:00:30]} Qh6 {[%emt 0:00:00]} 32. Qxh6 {[%emt 0:02:12]} Bxh6 {[%emt 0:00:00]} 33. Kf2 {[%emt 0:03:10]} Ke7 {[%emt 0:00:00]} 34. Bd2 {[%emt 0:00:26]} Kf7 {[%emt 0:00:31]} 35. Ke2 {[%emt 0:00:59]} Ke7 {[%emt 0:01:07]} 36. Kd1 {[%emt 0:00:20]} Bf8 {[%emt 0:00:25]} 37. Kc2 {[%emt 0:00:23]} Kf7 {[%emt 0:00:32]} 38. Kb2 {[%emt 0:00:53]} Be7 {[%emt 0:01:07]} 39. c4 {[%emt 0:02:33]} bxc4 {[%emt 0:02:10]} 40. Bxc4 {[%emt 0:00:05]} Bc8 {[%emt 0:01:29]} 41. Kb3 {[%emt 0:02:23]} Ke8 {[%emt 0:00:40]} 42. d5 {[%emt 0:04:50]} exd5 {[%emt 0:02:09]} 43. Bxd5 {[%emt 0:00:03]} Bc5 {[%emt 0:00:11]} 44. Bc1 {[%emt 0:00:51]} Bd7 {[%emt 0:00:30]} 45. Kc4 {[%emt 0:01:15]} Be7 {[%emt 0:00:33]} 46. Bb7 {[%emt 0:00:31]} Be6+ {[%emt 0:00:26]} 47. Kd4 {[%emt 0:00:19]} a5 {[%emt 0:00:16]} 48. Bd5 {[%emt 0:00:41]} Bd7 {[%emt 0:00:59]} 49. e6 {[%emt 0:00:33]} Bb5 {[%emt 0:00:22]} 50. Ke5 {[%emt 0:00:21]} Bd3 {[%emt 0:00:48]} 51. Kd4 {[%emt 0:00:39]} Bf6+ {[%emt 0:00:49]} 52. Kc5 {[%emt 0:00:05]} Be5 {[%emt 0:00:10]} 53. Kb6 {[%emt 0:01:21]} a4 {[%emt 0:00:14]} 54. Bc6+ {[%emt 0:00:11]} Ke7 {[%emt 0:00:12]} 55. Bxa4 {[%emt 0:00:00]} Bxg3 {[%emt 0:00:30]} 56. Bb3 {[%emt 0:00:53]} Bd6 {[%emt 0:00:47]} 57. Bd2 {[%emt 0:00:35]} Bxa3 {[%emt 0:00:35]} 58. Be1 {[%emt 0:00:22]} Bd6 {[%emt 0:00:52]} 59. Bh4+ {[%emt 0:00:20]} Kf8 {[%emt 0:00:13]} 60. Kc6 {[%emt 0:00:24]} Be7 {[%emt 0:00:39]} 61. Bg3 {[%emt 0:00:07]} Bg5 {[%emt 0:00:35]} 62. Bf2 {[%emt 0:00:30]} f4 {[%emt 0:00:15]} 63. exf4 {[%emt 0:00:31]} Bxf4 {[%emt 0:00:07]} 64. Bc5+ {[%emt 0:00:33]} Ke8 {[%emt 0:00:55]} 65. Kd5 {[%emt 0:00:20]} Bg5 {[%emt 0:00:18]} 66. Ba4+ {[%emt 0:00:34]} Kd8 {[%emt 0:00:18]} 67. Bb6+ {[%emt 0:00:29]} Ke7 {[%emt 0:00:46]} 68. Bc5+ {[%emt 0:00:09]} Kd8 {[%emt 0:00:16]} 69. Bb6+ {[%emt 0:00:18]} Kc8 {[%emt 0:00:14]} 1/2-1/2

[Event "Turkish-ch Youth U13 2024"]
[Site "Belek Antalya"]
[Date "2024.01.26"]
[Round "8"]
[White "Canli, Elif Rana"]
[Black "Zengin, Ovgu"]
[Result "0-1"]
[ECO "B48"]
[WhiteElo "1258"]
[BlackElo "1470"]
[Annotator "NA RC COMBH"]
[PlyCount "80"]
[EventDate "2024.01.21"]
[EventType "swiss"]
[EventCountry "TUR"]
[SourceTitle "playchess.com"]
[Source "ChessBase"]
[SourceQuality "1"]
[TimeControl "5400+30"]

1. e4 {[%emt 0:01:00]} c5 {[%emt 0:01:00]} 2. Nf3 {[%emt 0:00:30]} e6 {[%emt 0:00:00]} 3. d4 {[%emt 0:00:00]} cxd4 {[%emt 0:00:00]} 4. Nxd4 {[%emt 0:00:00]} Nc6 {[%emt 0:00:30]} 5. Nc3 {[%emt 0:00:00]} a6 {[%emt 0:01:30]} 6. Be3 {[%emt 0:00:00]} Qc7 {[%emt 0:00:30]} 7. Nxc6 {[%emt 0:04:30]} bxc6 {[%emt 0:01:30]} 8. Bc4 {[%emt 0:05:30]} Nf6 {[%emt 0:00:30]} 9. O-O {[%emt 0:06:30]} Be7 {[%emt 0:02:30]} 10. f3 {[%emt 0:03:30]} O-O {[%emt 0:01:30]} 11. Qe2 {[%emt 0:06:30]} d5 {[%emt 0:01:30]} 12. Bb3 {[%emt 0:12:30]} Bb7 {[%emt 0:02:30]} 13. Rad1 {[%emt 0:03:30]} Rad8 {[%emt 0:02:30]} 14. exd5 {[%emt 0:06:30]} exd5 {[%emt 0:05:30]} 15. Na4 {[%emt 0:03:30]} c5 {[%emt 0:01:30]} 16. c3 {[%emt 0:05:30]} Rfe8 {[%emt 0:00:30]} 17. Qf2 {[%emt 0:00:30]} Bd6 {[%emt 0:03:30]} 18. g3 {[%emt 0:07:30]} Rc8 {[%emt 0:03:30]} 19. Rfe1 {[%emt 0:02:30]} Qc6 {[%emt 0:03:30]} 20. Rd2 {[%emt 0:04:30]} a5 {[%emt 0:07:30]} 21. Red1 {[%emt 0:01:30]} Bf8 {[%emt 0:04:30]} 22. Bg5 {[%emt 0:02:30]} c4 {[%emt 0:22:30]} 23. Bc2 {[%emt 0:00:00]} Nd7 {[%emt 0:04:30]} 24. Rxd5 {[%emt 0:11:02]} Nc5 {[%emt 0:01:30]} 25. Kg2 {[%emt 0:07:55]} Nxa4 {[%emt 0:00:00]} 26. Rxa5 {[%emt 0:01:26]} Nc5 {[%emt 0:03:00]} 27. Be3 {[%emt 0:02:50]} Qxf3+ {[%emt 0:04:30]} 28. Qxf3 {[%emt 0:01:11]} Rxe3 {[%emt 0:00:30]} 29. Qxb7 {[%emt 0:01:56]} Nxb7 {[%emt 0:00:00]} 30. Ra7 {[%emt 0:00:00]} Nc5 {[%emt 0:02:00]} 31. Bf5 {[%emt 0:00:00]} Rce8 {[%emt 0:01:30]} 32. Bg4 {[%emt 0:00:01]} Nd3 {[%emt 0:00:30]} 33. Rd2 {[%emt 0:00:03]} Re1 {[%emt 0:00:30]} 34. b3 {[%emt 0:00:28]} Bc5 {[%emt 0:00:30]} 35. Rc7 {[%emt 0:01:08]} Rg1+ {[%emt 0:01:11]} 36. Kh3 {[%emt 0:00:08]} Nf2+ {[%emt 0:01:28]} 37. Kh4 {[%emt 0:00:18]} Rg2 {[%emt 0:00:37]} 38. h3 {[%emt 0:01:57]} Bb6 {[%emt 0:03:13]} 39. Rb7 {[%emt 0:00:18]} Bd8+ {[%emt 0:00:00]} 40. Kh5 {[%emt 0:00:38]} g6+ {[%emt 0:00:06]} 0-1